bitfinex/quotes_SOLUSD_20241008
["timestamp","ask_amount","ask_price","bid_price","bid_amount"]
[1728414548225,9.34890027,142.7,142.66,23.776884]
[1728414548537,5.19251378,142.69,142.67,7.0088]
[1728414548738,7.0073,142.71,142.67,7.0088]
[1728414549031,9.34681984,142.7,142.67,7.0088]
[1728414549224,5.19124536,142.69,142.67,7.0088]
[1728414549423,6.2856,142.72,142.65,30.76439487]
[1728414549629,7.0077,142.7,142.66,7.0094]
[1728414549832,5.19009122,142.69,142.66,7.0094]
[1728414550217,7.0077,142.7,142.66,7.0094]
[1728414550416,7.0077,142.7,142.65,30.76439487]
[1728414550645,7.0077,142.7,142.67,7.0091]
[1728414552022,7.0077,142.7,142.66,7.0093]
[1728414556835,5.18595382,142.69,142.61,35.0589]
[1728414557036,7.0092,142.67,142.64,7.0104]
[1728414557346,9.34348325,142.68,142.64,7.0104]
[1728414557347,7.0087,142.68,142.64,7.0104]
[1728414557738,4.15898774,142.67,142.62,17.5279]
[1728414558045,7.0092,142.67,142.63,7.0109]
[1728414558246,7.0089,142.68,142.64,7.0106]
[1728414558548,9.3470057,142.67,142.64,7.0106]
[1728414558737,7.0089,142.68,142.64,7.0106]
[1728414558937,9.34700728,142.67,142.64,7.0106]
[1728414559130,20.0,142.69,142.62,17.5279]
[1728414559329,7.0093,142.67,142.63,7.0108]
[1728414559549,4.16117768,142.66,142.63,7.0108]
[1728414559726,7.0093,142.67,142.63,8.41278735]
[1728414559926,4.16111087,142.66,142.63,8.41278735]
[1728414560157,7.0093,142.67,142.63,8.41278735]
[1728414560342,4.16228873,142.66,142.63,7.0108]
[1728414560653,7.0093,142.67,142.63,7.0108]
[1728414560824,4.16231027,142.66,142.63,8.41278796]
[1728414561030,7.0093,142.67,142.63,8.41278796]
[1728414561353,4.16231027,142.66,142.63,7.0108]
[1728414561529,7.0093,142.67,142.63,7.0108]
[1728414561828,4.16362399,142.66,142.63,7.0108]
[1728414562030,7.0093,142.67,142.63,7.0108]
[1728414562229,4.16474862,142.66,142.63,7.0108]
[1728414562452,7.0093,142.67,142.63,7.0108]
[1728414562624,4.16511782,142.66,142.63,7.0108]
[1728414562824,7.0093,142.67,142.63,7.0108]
[1728414563040,4.16511875,142.66,142.63,7.0108]
[1728414563351,4.16511875,142.65,142.63,7.0108]
[1728414563535,4.16511875,142.66,142.63,7.0108]
[1728414563759,7.0093,142.67,142.63,7.0108]
[1728414563924,4.16687804,142.65,142.63,7.0108]
[1728414564124,7.0093,142.67,142.63,7.0108]
[1728414564425,4.16726148,142.66,142.63,7.0108]
[1728414564638,4.16726148,142.65,142.63,7.0108]
[1728414564927,7.0093,142.67,142.63,7.0108]
[1728414565127,4.16907464,142.66,142.63,7.0108]
[1728414565328,4.16907464,142.65,142.63,7.0108]
[1728414565540,7.0093,142.67,142.63,7.0108]
[1728414565738,4.17151427,142.66,142.63,7.0108]
[1728414565937,4.17151427,142.65,142.63,7.0108]
[1728414566147,4.17151427,142.64,142.63,7.0108]
[1728414566524,4.17151427,142.66,142.63,7.0108]
[1728414566724,4.17151427,142.65,142.63,7.0108]
[1728414567036,4.17151427,142.64,142.63,7.0108]
[1728414567258,7.0093,142.67,142.63,7.0108]
[1728414567452,4.17677685,142.64,142.63,7.0108]
[1728414567754,4.17677685,142.65,142.63,7.0108]
[1728414567930,4.17677685,142.64,142.63,7.0108]
[1728414568120,4.17677685,142.66,142.63,7.0108]
[1728414568320,4.17677685,142.65,142.63,7.0108]
[1728414568545,7.0093,142.67,142.63,7.0108]
[1728414568546,4.17677685,142.64,142.63,7.0108]
[1728414568743,4.17677685,142.66,142.63,7.0108]
[1728414568956,4.17677685,142.65,142.63,7.0108]
[1728414569255,4.17677685,142.64,142.63,7.0108]
[1728414569424,4.17677685,142.66,142.63,7.0108]
[1728414569623,4.17677685,142.65,142.63,7.0108]
[1728414569844,4.17677685,142.64,142.63,7.0108]
[1728414570245,4.17677685,142.66,142.63,7.0108]
[1728414570436,4.17677685,142.65,142.63,7.0108]
[1728414570840,4.17677685,142.64,142.63,7.0108]
[1728414571041,4.17677685,142.66,142.63,7.0108]
[1728414571348,4.17677685,142.65,142.63,7.0108]
[1728414571553,4.17677685,142.64,142.63,7.0108]
[1728414576127,4.17677685,142.64,142.62,17.5279]
[1728414576359,4.17677685,142.63,142.62,24.5394]
[1728414579475,4.17677685,142.63,142.62,25.94145576]
[1728414580059,4.17677685,142.63,142.62,49.71833976]
[1728414580258,4.17677685,142.63,142.62,61.55577887]
[1728414580954,4.17677685,142.63,142.62,68.316284]
[1728414581190,16.5778,142.72,142.62,57.01637887]
[1728414581360,5.22490721,142.71,142.68,7.0082]
[1728414581848,9.42211238,142.7,142.68,7.0082]
[1728414582042,9.42211238,142.69,142.68,7.0082]
[1728414587437,9.42211238,142.69,142.68,8.40973349]
[1728414587964,9.42211238,142.69,142.67,24.5312]
[1728414588168,9.42211238,142.68,142.67,24.5312]
[1728414588478,4.19826038,142.68,142.67,24.5312]
[1728414588760,4.19826038,142.68,142.64,48.29199487]
[1728414588761,9.43469639,142.68,142.65,7.0097]
[1728414589061,7.0083,142.69,142.65,7.0097]
[1728414589062,9.43469639,142.67,142.65,7.0097]
[1728414589365,9.43469639,142.66,142.64,17.5255]
[1728414589546,9.43469639,142.65,142.61,17.5295]
[1728414589741,9.43469639,142.64,142.61,24.5412]
[1728414589941,9.43469639,142.63,142.62,7.0116]
[1728414590173,9.43469639,142.63,142.61,24.5413]
[1728414590339,9.43469639,142.62,142.61,24.5413]
[1728414590736,9.43469639,142.62,142.6,7.0124]
[1728414590964,9.43469639,142.61,142.59,7.013]
[1728414591164,9.43469639,142.6,142.59,7.013]
[1728414595900,23.0631,142.65,142.58,49.70845538]
[1728414596171,0.12549,142.64,142.61,7.0118]
[1728414596474,9.43789353,142.63,142.61,7.0118]
[1728414596682,9.43789353,142.62,142.61,7.0118]
[1728414597474,9.43789353,142.62,142.6,24.5431]
[1728414597683,9.43789353,142.61,142.6,24.5431]
[1728414602993,16.0529,142.65,142.6,17.5307]
[1728414603191,16.0529,142.65,142.61,7.0117]
[1728414603362,5.24128467,142.64,142.61,7.0117]
[1728414603563,9.43503984,142.63,142.62,7.0116]
[1728414605198,9.43503984,142.63,142.62,44.02797887]
[1728414605790,9.43503984,142.63,142.62,64.02797887]
[1728414606197,30.03875084,142.74,142.68,17.5207]
[1728414606543,37.28044245,142.74,142.68,17.5207]
[1728414606694,37.28044245,142.74,142.69,1.40152529]
[1728414607075,20.0,142.73,142.68,17.5207]
[1728414608010,20.0,142.73,142.69,7.008]
[1728414609369,20.0,142.73,142.7,7.0076]
[1728414612884,7.24169161,142.74,142.71,7.0068]
[1728414613092,16.0762,142.75,142.71,1.40138146]
[1728414613270,23.0818,142.75,142.71,7.0071]
[1728414613469,16.0762,142.75,142.7,17.5188]
[1728414614374,20.12549,142.74,142.7,17.5188]
[1728414614980,27.13159,142.74,142.7,24.5264]
[1728414619802,5.23206498,142.73,142.7,24.5264]
[1728414619997,27.13159,142.74,142.7,24.5264]
[1728414620181,7.0068,142.72,142.68,7.0082]
[1728414620388,0.12549,142.72,142.69,7.008]
[1728414621975,7.007,142.72,142.68,7.0085]
[1728414622169,7.0077,142.7,142.67,17.5222]
[1728414622397,7.0077,142.7,142.67,7.0091]
[1728414622975,7.0074,142.71,142.67,7.0091]
[1728414623174,0.12549,142.69,142.66,17.524]
[1728414623783,0.12549,142.69,142.64,7.0106]
[1728414624087,7.13399,142.69,142.65,7.01]
[1728414624602,7.0087,142.68,142.64,7.0104]
[1728414624987,7.0095,142.67,142.63,24.538]
[1728414625601,20.12549,142.69,142.6,17.5304]
[1728414625793,7.0102,142.65,142.61,7.0119]
[1728414626196,7.0107,142.64,142.6,24.5428]
[1728414627808,7.0116,142.62,142.58,7.0134]
[1728414628103,0.12549,142.61,142.58,7.0134]
[1728414628296,0.12549,142.59,142.56,7.0144]
[1728414631802,0.12549,142.59,142.55,7.015]
[1728414634212,7.014,142.58,142.54,17.5383]
[1728414634403,7.30716186,142.61,142.53,7.0159]
[1728414634404,7.0141,142.57,142.53,7.0159]
[1728414634723,27.14019,142.56,142.52,7.0164]
[1728414635301,20.12549,142.56,142.52,7.0164]
[1728414638120,0.12549,142.56,142.52,7.0164]
[1728414638423,7.0152,142.55,142.51,24.5585]
[1728414638612,0.12549,142.55,142.51,24.5585]
[1728414638930,0.12549,142.55,142.51,24.5583]
[1728414639100,0.12549,142.55,142.51,17.5417]
[1728414640111,0.12549,142.55,142.52,7.0164]
[1728414642230,27.14059,142.55,142.51,24.5586]
[1728414642527,7.0156,142.54,142.5,7.0173]
[1728414642931,7.14149,142.53,142.49,7.0176]
[1728414643108,0.12549,142.53,142.49,7.0176]
[1728414643526,0.12549,142.53,142.5,7.0173]
[1728414646325,42.98989,142.53,142.49,7.018]
[1728414646532,35.97349,142.53,142.48,17.5453]
[1728414647836,42.98979,142.53,142.49,7.018]
[1728414650230,42.98979,142.53,142.5,17.5435]
[1728414650231,0.12549,142.53,142.5,17.5435]
[1728414651330,0.12549,142.53,142.51,7.017]
[1728414651558,27.0152,142.55,142.51,7.017]
[1728414651714,0.12549,142.54,142.51,7.017]
[1728414651913,20.0,142.53,142.5,24.5608]
[1728414660343,20.0,142.53,142.5,17.5435]
[1728414660524,20.0,142.53,142.51,7.0169]
[1728414660854,20.0,142.53,142.5,17.5435]
[1728414660855,7.0161,142.53,142.5,17.5435]
[1728414661026,0.12549,142.52,142.49,7.0176]
[1728414661541,0.12549,142.52,142.49,7.0179]
[1728414663355,0.12549,142.52,142.5,7.0175]
[1728414665822,20.0,142.53,142.5,7.0175]
[1728414666032,7.31498841,142.54,142.52,7.0165]
[1728414666225,20.0,142.54,142.51,17.5423]
[1728414666423,14.62952174,142.56,142.51,17.5423]
[1728414666669,20.0,142.54,142.51,17.5423]
[1728414666941,27.0156,142.54,142.51,17.5423]
[1728414669153,20.0,142.54,142.51,24.5592]
[1728414669559,14.45891112,142.55,142.51,17.5423]
[1728414669853,0.12549,142.54,142.51,24.5589]
[1728414671775,7.31822112,142.55,142.53,7.016]
[1728414671951,20.12549,142.56,142.53,7.016]
[1728414672461,7.31797862,142.57,142.55,7.015]
[1728414672666,7.0137,142.58,142.54,7.0152]
[1728414672956,20.0,142.57,142.54,7.0152]
[1728414673335,27.0142,142.57,142.53,7.016]
[1728414673955,0.12549,142.56,142.53,7.016]
[1728414674377,0.12549,142.56,142.52,17.5411]
[1728414674686,0.12549,142.56,142.54,7.0155]
[1728414676259,0.12549,142.56,142.52,17.5411]
[1728414676477,0.12549,142.56,142.53,7.0158]
[1728414677063,20.0,142.57,142.52,17.5411]
[1728414677276,20.0,142.57,142.54,7.0154]
[1728414680182,5.21275573,142.56,142.54,7.0154]
[1728414681378,12.22735573,142.56,142.52,24.5575]
[1728414681595,0.12549,142.55,142.49,22.1402]
[1728414681766,7.0161,142.53,142.49,24.5623]
[1728414682878,5.22556796,142.52,142.49,24.5623]
[1728414683588,5.22556796,142.51,142.49,24.5623]
[1728414683794,5.22556796,142.5,142.49,17.5445]
[1728414683966,5.22556796,142.51,142.49,24.5625]
[1728414684171,5.22556796,142.5,142.49,24.5625]
[1728414684483,5.22556796,142.5,142.49,17.5445]
[1728414685373,5.22556796,142.5,142.48,7.0183]
[1728414685581,5.22556796,142.49,142.48,7.0183]
[1728414688887,5.22556796,142.49,142.48,30.795184]
[1728414689273,5.22556796,142.49,142.48,44.03467887]
[1728414689473,7.0131,142.59,142.55,7.0147]
[1728414689692,12.53514882,142.58,142.55,7.0147]
[1728414689877,5.24194976,142.57,142.55,7.0147]
[1728414690086,5.24194976,142.56,142.55,7.0147]
[1728414690278,5.24194976,142.56,142.54,24.5536]
[1728414690475,14.30709906,142.58,142.51,17.5416]
[1728414690476,5.24194976,142.55,142.51,17.5416]
[1728414690675,5.24194976,142.55,142.51,24.5584]
[1728414690676,5.24194976,142.54,142.51,24.5584]
[1728414690887,5.24194976,142.53,142.51,17.5416]
[1728414691199,5.24194976,142.52,142.51,24.5586]
[1728414692774,5.24604815,142.52,142.51,24.5586]
[1728414695491,5.24604815,142.52,142.51,48.335484]
[1728414696210,20.12549,142.56,142.53,7.0157]
[1728414696708,5.24843111,142.55,142.53,7.0157]
[1728414696877,5.24843111,142.54,142.53,7.0157]
[1728414706604,5.24843111,142.54,142.52,7.0164]
[1728414706911,5.25013658,142.53,142.52,7.0164]
[1728414710546,5.24953875,142.53,142.51,41.318484]
[1728414710805,5.24953875,142.53,142.52,7.0165]
[1728414711005,7.0147,142.56,142.52,7.0165]
[1728414711211,5.24953875,142.55,142.52,7.0165]
[1728414711505,5.24953875,142.54,142.52,7.0165]
[1728414711692,5.24953875,142.53,142.52,7.0165]
[1728414714145,0.12549,142.57,142.52,25.17992655]
[1728414714410,5.24890512,142.56,142.54,7.0153]
[1728414714582,5.24890512,142.55,142.54,7.0153]
[1728414717842,20.0,142.57,142.54,7.0153]
[1728414717998,5.24874772,142.55,142.54,7.0153]
[1728414718194,5.37423772,142.56,142.53,24.5553]
[1728414718612,5.24874772,142.55,142.53,24.5553]
[1728414718794,5.24874772,142.54,142.53,24.5553]
[1728414720491,5.16774772,142.54,142.53,24.5553]
[1728414720814,5.16774772,142.54,142.51,7.0169]
[1728414721111,7.0154,142.55,142.51,7.0169]
[1728414722021,7.14019,142.56,142.52,7.0162]
[1728414724412,0.12549,142.56,142.51,23.776884]
[1728414724617,27.0142,142.57,142.54,7.0155]
[1728414724820,20.0,142.57,142.54,7.0155]
[1728414726123,27.0141,142.57,142.53,7.0159]
[1728414731501,7.29319906,142.58,142.54,18.94191654]
[1728414731707,7.29319906,142.58,142.56,7.0142]
[1728414731909,20.0,142.59,142.56,7.0142]
[1728414732624,5.25043151,142.58,142.56,7.0142]
[1728414732829,5.25043151,142.57,142.56,7.0142]
[1728414734814,5.25043151,142.57,142.56,30.791084]
[1728414735729,7.29097783,142.6,142.57,7.014]
[1728414735921,5.24840393,142.59,142.56,24.5505]
[1728414736133,14.30387783,142.6,142.54,7.0153]
[1728414736134,12.38779393,142.58,142.54,7.0153]
[1728414736321,5.24840393,142.57,142.54,7.0153]
[1728414736513,5.24840393,142.56,142.54,23.776884]
[1728414736714,7.41646783,142.6,142.55,17.5373]
[1728414736922,5.37336645,142.59,142.56,7.0144]
[1728414737226,5.24787645,142.58,142.56,7.0144]
[1728414737424,0.12549,142.59,142.56,7.0144]
[1728414737425,5.24787645,142.57,142.56,7.0144]
[1728414741418,5.24787645,142.57,142.56,7.0144]
[1728414743133,5.24787645,142.57,142.54,23.776884]
[1728414743321,5.24787645,142.57,142.54,7.0153]
[1728414743542,7.0139,142.58,142.54,7.0153]
[1728414743734,5.24644502,142.56,142.54,7.0153]
[1728414743931,5.24644502,142.56,142.54,24.5541]
[1728414744640,7.0139,142.58,142.54,24.5541]
[1728414744827,5.24730049,142.55,142.54,24.5541]
[1728414747336,5.24730049,142.55,142.52,7.0161]
[1728414747548,5.25067466,142.54,142.51,17.5413]
[1728414747851,5.25067466,142.53,142.51,24.5581]
[1728414748027,5.25067466,142.52,142.51,24.5581]
[1728414750422,5.25067466,142.52,142.51,17.5413]
[1728414750843,5.25067466,142.52,142.48,17.5451]
[1728414751044,12.26767466,142.51,142.48,17.5451]
[1728414751246,5.25067466,142.5,142.48,17.5451]
[1728414751549,5.25067466,142.49,142.47,7.0187]
[1728414751730,5.25067466,142.48,142.46,7.0193]
[1728414751921,5.25067466,142.47,142.46,7.0193]
[1728414756126,5.24661782,142.47,142.46,7.0193]
[1728414757144,5.24661782,142.47,142.45,17.5489]
[1728414757356,7.27479194,142.5,142.45,24.5687]
[1728414757357,5.24661782,142.46,142.45,24.5687]
[1728414757655,5.24324835,142.46,142.45,24.5687]
[1728414758229,5.24324835,142.46,142.42,17.5529]
[1728414758547,0.12549,142.47,142.42,17.5529]
[1728414758548,12.26324835,142.45,142.42,17.5529]
[1728414758736,5.24324835,142.44,142.42,17.5529]
[1728414759057,5.24324835,142.44,142.41,7.8635489]
[1728414759058,5.24324835,142.43,142.41,7.8635489]
[1728414759237,5.24324835,142.42,142.41,7.8635489]
[1728414763241,7.0204,142.45,142.41,7.8635489]
[1728414763439,5.22880269,142.44,142.41,7.8635489]
[1728414763637,5.22880269,142.43,142.41,0.8419489]
[1728414763945,5.22880269,142.42,142.41,0.8419489]
[1728414764130,5.22880269,142.43,142.41,0.8419489]
[1728414764336,5.22667049,142.42,142.41,0.8419489]
[1728414765150,0.12549,142.43,142.41,0.8419489]
[1728414766136,7.14659,142.43,142.41,0.8419489]
[1728414766342,7.0214,142.42,142.41,0.8419489]
[1728414766544,0.12549,142.42,142.41,0.8419489]
[1728414766757,5.34862913,142.42,142.41,0.8419489]
[1728414767130,47.54472913,142.42,142.41,0.8419489]
[1728414772031,40.52332913,142.42,142.41,0.8419489]
[1728414772237,20.12549,142.42,142.41,0.8419489]
[1728414774154,0.12549,142.42,142.41,0.8419489]
[1728414774962,20.0,142.43,142.41,0.8419489]
[1728414776741,20.12549,142.44,142.41,7.8638489]
[1728414780149,27.14599,142.44,142.41,0.8419489]
[1728414780737,20.0,142.44,142.41,0.8419489]
[1728414781073,0.12549,142.42,142.41,0.8419489]
[1728414781344,20.0,142.44,142.41,0.8419489]
[1728414781345,27.0206,142.44,142.41,0.8419489]
[1728414781549,0.12549,142.43,142.41,0.8419489]
[1728414783755,20.0,142.44,142.41,7.8638489]
[1728414784061,27.0205,142.44,142.41,7.8638489]
[1728414784236,27.0205,142.44,142.41,0.8419489]
[1728414784641,7.14649,142.43,142.41,0.8419489]
[1728414788640,0.12549,142.43,142.41,0.8419489]
[1728414789663,27.0206,142.44,142.41,0.8419489]
[1728414789664,27.14689,142.42,142.41,0.8419489]
[1728414790269,34.44158788,142.42,142.41,0.8419489]
[1728414790470,27.14689,142.42,142.41,0.8419489]
[1728414793961,32.35228077,142.42,142.41,0.8419489]
[1728414794381,27.14689,142.42,142.41,0.8419489]
[1728414795474,20.12549,142.42,142.41,0.8419489]
[1728414795849,27.14689,142.42,142.41,0.8419489]
[1728414796059,7.14689,142.42,142.41,0.8419489]
[1728414796367,27.14689,142.42,142.41,0.8419489]
[1728414798769,20.12549,142.42,142.41,0.8419489]
[1728414798949,20.0,142.42,142.41,0.8419489]
[1728414800989,14.31583651,142.44,142.41,7.8638489]
[1728414801271,7.0206,142.44,142.41,0.8419489]
[1728414802046,14.51371792,142.45,142.41,0.8419489]
[1728414802253,7.0212,142.43,142.41,0.8419489]
[1728414803572,7.0207,142.44,142.41,0.8419489]
[1728414806557,7.021,142.43,142.41,0.8419489]
[1728414806962,20.12549,142.45,142.42,24.5746]
[1728414807164,27.0202,142.45,142.41,7.8637489]
[1728414807366,7.14629,142.44,142.41,0.8419489]
[1728414807983,20.0,142.45,142.41,7.8638489]
[1728414808159,20.0,142.45,142.42,7.0214]
[1728414808362,27.02,142.45,142.41,25.4180489]
[1728414809083,27.0201,142.45,142.41,25.4183489]
[1728414810487,20.0,142.45,142.41,18.3965489]
[1728414810688,7.0205,142.44,142.41,25.4184489]
[1728414810894,27.0201,142.45,142.41,25.4184489]
[1728414811778,7.29482402,142.44,142.41,25.4184489]
[1728414813290,7.29482402,142.44,142.42,7.0214]
[1728414813495,7.29482402,142.44,142.43,44.03727887]
[1728414813684,7.0181,142.49,142.45,7.0197]
[1728414814975,7.2938077,142.51,142.46,1.40382627]
[1728414815178,7.2938077,142.51,142.48,7.0181]
[1728414815385,7.0168,142.52,142.48,7.0181]
[1728414822678,7.0178,142.5,142.46,17.5478]
[1728414822888,7.0178,142.5,142.47,7.0189]
[1728414823594,27.14219,142.52,142.48,7.0184]
[1728414824191,7.0172,142.51,142.47,7.0189]
[1728414825495,20.12549,142.52,142.47,37.01637887]
[1728414825702,20.12549,142.52,142.49,7.018]
[1728414826015,20.12549,142.52,142.48,18.94980172]
[1728414826016,5.26244391,142.5,142.48,17.74793689]
[1728414826378,20.12549,142.52,142.48,17.74793689]
[1728414826609,20.12549,142.52,142.48,16.34433517]
[1728414826908,27.14199,142.52,142.48,16.34433517]
[1728414827280,27.14199,142.52,142.48,23.36263517]
[1728414827474,7.0171,142.51,142.48,23.36263517]
[1728414827688,7.0171,142.51,142.48,16.34433517]
[1728414828796,7.0171,142.51,142.48,23.36283517]
[1728414831509,7.0183,142.49,142.45,24.569]
[1728414831805,7.0176,142.5,142.46,7.0192]
[1728414831978,20.0,142.5,142.47,7.0188]
[1728414832409,27.0175,142.5,142.47,7.0188]
[1728414834495,7.14389,142.49,142.45,24.5692]
[1728414834696,27.0177,142.5,142.46,7.0192]
[1728414835303,20.0,142.5,142.45,17.5494]
[1728414835598,7.14379,142.49,142.45,24.5693]
[1728414836184,7.14379,142.49,142.44,7.0202]
[1728414836185,20.0,142.48,142.44,7.0202]
[1728414836488,7.0187,142.48,142.44,7.0202]
[1728414836680,7.0191,142.47,142.43,24.5731]
[1728414836904,7.0186,142.48,142.44,7.0203]
[1728414837199,20.0,142.47,142.44,7.0203]
[1728414838302,7.019,142.47,142.44,7.0203]
[1728414838786,20.0,142.49,142.43,17.5524]
[1728414838988,7.0195,142.46,142.43,17.5524]
[1728414839709,7.0195,142.46,142.42,7.0214]
[1728414839918,7.0201,142.45,142.42,7.0214]
[1728414840205,7.0201,142.45,142.41,0.8419489]
[1728414840506,7.0201,142.45,142.41,7.8637489]
[1728414840702,7.0207,142.44,142.41,0.8419489]
[1728414842810,16.0851,142.45,142.41,0.8419489]
[1728414842995,7.021,142.43,142.41,0.8419489]
[1728414845998,7.14689,142.42,142.41,0.8419489]
[1728414846511,27.14689,142.42,142.41,0.8419489]
[1728414851838,23.1055,142.45,142.41,7.8638489]
[1728414852117,16.0851,142.45,142.42,7.0211]
[1728414852320,23.1052,142.45,142.41,25.4181489]
[1728414853427,0.12549,142.44,142.42,7.0213]
[1728414853721,14.31537826,142.46,142.42,7.0213]
[1728414853920,0.12549,142.45,142.42,7.0213]
[1728414854495,20.12549,142.45,142.42,7.0213]
[1728414857723,20.12549,142.45,142.43,7.0209]
[1728414860713,20.12549,142.45,142.41,18.3965489]
[1728414860918,20.12549,142.45,142.42,7.0212]
[1728414861525,20.12549,142.45,142.43,7.0209]
[1728414865226,20.12549,142.45,142.42,7.0213]
[1728414866706,7.29577826,142.46,142.44,7.0204]
[1728414868412,0.12549,142.45,142.43,24.573]
[1728414871424,7.29577826,142.46,142.43,24.573]
[1728414881246,7.29577826,142.46,142.43,17.5524]
[1728414881432,7.29577826,142.46,142.44,7.0203]
[1728414882139,7.29577826,142.46,142.43,17.5524]
[1728414882349,7.29577826,142.46,142.43,24.5733]
[1728414882638,14.31537826,142.46,142.43,17.5524]
[1728414883143,0.12549,142.45,142.43,17.5524]
[1728414883721,7.14549,142.45,142.41,7.8636489]
[1728414886445,5.26400929,142.44,142.41,7.8636489]
[1728414886655,5.26400929,142.43,142.41,7.8636489]
[1728414886825,5.26400929,142.42,142.41,7.8636489]
[1728414887027,7.14549,142.45,142.41,7.8636489]
[1728414887744,0.12549,142.45,142.42,7.0213]
[1728414888749,7.29577826,142.46,142.43,7.0208]
[1728414889258,7.29577826,142.46,142.43,24.5732]
[1728414890664,7.29577826,142.46,142.44,7.0201]
[1728414894355,14.31537826,142.46,142.43,24.5732]
[1728414897244,7.29577826,142.46,142.43,17.5524]
[1728414897566,7.29577826,142.46,142.43,24.5731]
[1728414902347,7.26566826,142.46,142.43,24.5731]
[1728414903368,7.26566826,142.46,142.44,8.42446277]
[1728414903575,0.12549,142.47,142.44,7.0204]
[1728414903872,20.12549,142.47,142.44,7.0204]
[1728414904971,12.64503595,142.51,142.45,1.40388662]
[1728414905276,20.12549,142.49,142.46,7.0192]
[1728414905984,20.0,142.48,142.46,7.0192]
[1728414906375,20.0,142.48,142.44,18.95384121]
[1728414906673,20.0,142.48,142.45,7.0198]
[1728414906877,20.12549,142.49,142.46,7.0191]
[1728414907254,20.12549,142.49,142.46,24.5678]
[1728414908458,7.14359,142.49,142.46,17.5487]
[1728414908983,20.0,142.51,142.44,17.5511]
[1728414909170,0.12549,142.46,142.43,7.0208]
[1728414911379,17.5441,142.5,142.41,6.8588489]
[1728414911556,20.0,142.47,142.44,7.0202]
[1728414911760,27.019,142.47,142.43,24.5724]
[1728414912978,0.12549,142.46,142.43,24.5724]
[1728414913458,12.64503595,142.51,142.45,17.5498]
[1728414913666,7.0177,142.5,142.47,7.019]
[1728414913979,17.5427,142.51,142.45,17.5498]
[1728414914187,35.0852,142.51,142.39,16.1713]
[1728414914352,7.0196,142.46,142.42,7.0214]
[1728414914755,7.0196,142.46,142.41,24.4135489]
[1728414914979,0.12549,142.46,142.43,7.0209]
[1728414915189,20.12549,142.46,142.43,7.0209]
[1728414917459,27.14509,142.46,142.42,7.0212]
[1728414920070,0.12549,142.46,142.43,7.0208]
[1728414920276,7.14499,142.46,142.42,7.0211]
[1728414921097,20.12549,142.46,142.43,7.0208]
[1728414921596,27.14499,142.46,142.43,7.0208]
[1728414921777,7.0205,142.44,142.41,24.4135489]
[1728414921976,7.0201,142.45,142.41,25.4185489]
[1728414922376,7.14509,142.46,142.42,7.0213]
[1728414922584,7.02,142.45,142.41,25.4183489]
[1728414922781,7.021,142.43,142.41,0.8419489]
[1728414922963,7.02,142.45,142.41,7.8637489]
[1728414923169,20.0,142.44,142.41,7.8637489]
[1728414923375,7.0212,142.43,142.41,0.8419489]
[1728414923673,0.12549,142.43,142.41,0.8419489]
[1728414925776,20.0,142.46,142.44,7.0202]
[1728414926008,44.09444146,142.47,142.44,18.95496591]
[1728414926009,28.43804146,142.47,142.44,18.95496591]
[1728414926201,12.64503595,142.47,142.46,7.0195]
[1728414926384,12.64503595,142.47,142.46,30.796384]
[1728414926584,20.62670128,142.51,142.49,7.0178]
[1728414926785,7.0168,142.52,142.48,24.564]
[1728414926976,15.6564,142.54,142.44,13.23949487]
[1728414927321,15.6564,142.54,142.45,17.5492]
[1728414927491,7.0176,142.5,142.46,7.0191]
[1728414927673,7.0181,142.49,142.45,24.569]
[1728414927881,0.12549,142.51,142.44,7.0203]
[1728414927882,7.0185,142.48,142.44,7.0203]
[1728414928088,7.019,142.47,142.43,7.0209]
[1728414929696,7.0186,142.48,142.44,7.0204]
[1728414929904,20.12549,142.47,142.44,7.0204]
[1728414930275,20.0,142.47,142.45,7.0198]
[1728414930478,7.0181,142.49,142.43,13.23949487]